[Event "Czech Championship U20 Open 2023"]
[Site "Jaromerice nad Rokytnou"]
[Date "2023.03.13"]
[Round "5.5"]
[White "Frank, Adam"]
[Black "Smolik, Jachym"]
[Result "1-0"]
[ECO "B19"]
[WhiteElo "2391"]
[BlackElo "2297"]
[Annotator "TA"]
[PlyCount "111"]
[EventDate "2023.03.10"]
[EventType "tourn"]
[EventCountry "CZE"]
[SourceTitle "playchess.com"]
[Source "ChessBase"]
[SourceQuality "1"]
[TimeControl "40/5400+30:1800+30"]

{[%evp 24,111,6,0,9,8,16,22,25,4,33,32,19,19,18,14,46,62,97,89,81,89,87,104,91,92,85,72,1107,625,1101,1060,1036,1010,769,737,1482,1033,1145,1111,1008,821,772,676,657,659,623,339,303,314,420,419,559,567,572,561,558,545,538,530,513,483,582,531,856,714,678,629,999,699,1008,992,986,986,804,847,591,412,516,220,1888,1389,1331,984,718,208,29982,29983,29987,1113]} 1. e4 {[%emt 0:00:02]} c6 {[%emt 0:00:01]} 2. d4 {[%emt 0:00:04]} d5 {[%emt 0:00:04]} 3. Nd2 {[%emt 0:00:04]} dxe4 {[%emt 0:00:04]} 4. Nxe4 {[%emt 0:00:02]} Bf5 {[%emt 0:00:06]} 5. Ng3 {[%emt 0:00:03]} Bg6 {[%emt 0:00:10]} 6. h4 {[%emt 0:00:05]} h6 {[%emt 0:00:07]} 7. Nf3 {[%emt 0:00:03]} Nd7 {[%emt 0:00:09]} 8. h5 {[%emt 0:00:02]} Bh7 {[%emt 0:00:07]} 9. Bd3 {[%emt 0:00:05]} Bxd3 {[%emt 0:00:07]} 10. Qxd3 {[%emt 0:00:02]} Ngf6 {[%emt 0:00:39]} 11. Bd2 {[%emt 0:00:04]} e6 {[%emt 0:00:08]} 12. O-O-O {[%emt 0:00:04]} Be7 {[%emt 0:00:30]} 13. Kb1 {[%emt 0:00:06]} c5 {[%emt 0:06:17] [#] B19: Classical Caro-Kann: 4...Bf5 main line.} 14. d5 $1 {[%emt 0:00:05]} Nxd5 {[%emt 0:05:38] [#]} 15. Nf5 $1 {[%emt 0:00:06][%mdl 64] Deflection} Bf6 {[%emt 0:15:54] The position is equal.} 16. Nd6+ {[%emt 0:13:58][%mdl 1024] White has compensation.} (16. c4 $5 {[%cal Rf5d6]} Qb6 17. b3 $11) 16... Ke7 {[%emt 0:01:50] [#]} 17. Nf5+ {[%emt 0:07:57][%cal Bd6f5,Bf5e3,Be3g4][%mdl 96] Deflection} Kf8 {[%emt 0:06:59]} 18. c4 $1 {[%emt 0:04:33]} N5b6 {[%emt 0:19:28]} 19. Ne3 {[%emt 0:04:45] [#]} Qc7 $146 {[%emt 0:03:11]} ({Predecessor:} 19... Ne5 20. Nxe5 Bxe5 21. Qxd8+ Rxd8 22. Bb4 Ke8 23. Bxc5 Nd7 24. Bxa7 b6 25. c5 bxc5 {½-½ Piccoli,F (2073)-Zaas,P (2366) WZ-ch sf04 email 2018}) 20. Ng4 {[%emt 0:08:01]} Ke7 {[%emt 0:03:06]} 21. g3 {[%emt 0:04:11]} Qc6 {[%emt 0:06:36][%cal Ob6c4]} 22. Bf4 {[%emt 0:04:37]} Rhd8 {[%emt 0:09:36][%cal Ob6c4] ...Nxc4! would be deadly.} 23. Bd6+ {[%emt 0:03:30]} (23. Nxf6 Nxf6 24. Ne5 Qxh1 25. Rxh1 Rxd3 26. Nxd3 Nxc4 $17) 23... Ke8 {[%emt 0:00:02][%cal Ob6c4] [#]} 24. Rhe1 $1 $36 {[%emt 0:00:35][%cal Oe1e6][%mdl 2048] Keeping Black busy.} Nf8 {[%emt 0:00:21] ...Be7 is the strong threat.} (24... Bd4 $2 25. Rxe6+ fxe6 26. Qg6#) 25. Nfe5 {[%emt 0:02:36][%cal Bf3e5,Be5g4,Bg4h6,Bh6f5,Bf5g7][%mdl 32] White is much more active. The black rooks are badly placed.} Qa4 {[%emt 0:03:56][%mdl 8192] This move loses the game for Black.} (25... Rxd6 $16 26. Qxd6 Qxd6 27. Rxd6 Bxe5 28. Nxe5 f6) 26. Nxf6+ $18 {[%emt 0:10:58]} gxf6 {[%emt 0:00:04] Black is weak on the dark squares} 27. Ng4 {[%emt 0:00:04][%cal Rg4f6]} Nbd7 {[%emt 0:01:15]} 28. b3 {[%emt 0:00:14]} Qc6 {[%emt 0:01:09]} 29. f4 {[%emt 0:06:03]} a5 {[%emt 0:04:28]} 30. Nxh6 {[%emt 0:04:26]} Nb6 {[%emt 0:01:48]} 31. Nf5 {[%emt 0:00:06]} Rd7 {[%emt 0:02:22]} 32. Qe3 {[%emt 0:05:53]} a4 {[%emt 0:02:02]} 33. Ng7+ {[%emt 0:00:26][%mdl 64] Deflection} Kd8 {[%emt 0:00:02]} 34. Bxf8 {[%emt 0:00:06]} axb3 {[%emt 0:00:10]} 35. Rxd7+ {[%emt 0:12:03]} (35. Qxc5 Qe4+ 36. Rxe4 Rxd1+ 37. Kb2 Na4+ 38. Kxb3 Nxc5+ 39. Bxc5 Rd3+ 40. Kb4 Rxa2 41. Rd4+ Rxd4 42. Bxd4 Ke7 $18) 35... Nxd7 {[%emt 0:00:08]} 36. Rd1 {[%emt 0:00:04]} Rxa2 {[%emt 0:02:02][%cal Oa2a1] Threatens to win with ...Ra1+!} 37. Bxc5 {[%emt 0:05:42]} (37. Qxc5 $2 Qe4+) (37. Qxb3 Ra6 38. Qd3 Qb6+ 39. Kc1 Ra1+ 40. Kd2 Qb2+ 41. Ke1 Rxd1+ 42. Qxd1 f5 $18) 37... Ra1+ {[%emt 0:00:26]} 38. Kxa1 {[%emt 0:00:04][%cal Bb1a1,Ba1b2,Bb2c3,Bc3b4,Bb4c5][%mdl 32] Black must now prevent Ba3.} Qa4+ {[%emt 0:00:07]} 39. Kb2 {[%emt 0:00:02]} Qa2+ {[%emt 0:00:04]} 40. Kc3 {[%emt 0:00:03] White wants to mate with Bb6+.} Qc2+ {[%emt 0:00:36]} 41. Kb4 {[%emt 0:30:04] Threatening mate with Bb6+.} Qxd1 {[%emt 0:30:45]} 42. Qc3 {[%emt 0:00:00] Repels b2} Nxc5 {[%emt 0:00:00]} 43. Kxc5 {[%emt 0:00:00]} ({Weaker is} 43. Qxf6+ Kc7 44. Qe7+ (44. Kxc5 $2 {is the wrong capture.} Qd6+ 45. Kb5 Qb6+ 46. Ka4 b2 $19) (44. Qe5+ $2 Kd7 $19) 44... Nd7 45. Ne8+ Kc6 46. Qxf7 Qe2 47. Kxb3 Qd3+ 48. Kb2 (48. Kb4 Qd2+ 49. Ka3 Qd3+ 50. Kb4 Qd2+ 51. Ka3 Qd3+ 52. Kb4 $11) 48... Qd4+ 49. Kc2 (49. Kb3 Nc5+ 50. Kc2 Qxc4+ 51. Kd2 Qd3+ 52. Ke1 Qxg3+ 53. Kf1 Qh3+ 54. Kg1 Qg4+ 55. Kh1 Kb5 $11) 49... Qe4+ 50. Kd2 Qg2+ 51. Ke3 Qxg3+ 52. Ke2 Qg2+ 53. Ke3 Qg3+ 54. Ke2 Qg2+ 55. Kd3 Qf3+ 56. Kd2 Qf2+ 57. Kc3 Qe1+ 58. Kd4 Qd2+ 59. Ke4 Qe2+ 60. Kd4 Qf2+ 61. Kc3 Qe1+ 62. Kd4 Qd2+ 63. Ke4 Qg2+ 64. Kd3 Qf3+ 65. Kd2 Qg2+ 66. Ke3 Qg3+ $11) 43... Qc2 {[%emt 0:00:00]} 44. Kb4 {[%emt 0:00:00]} Ke7 {[%emt 0:00:00]} 45. Qxb3 {[%emt 0:00:00]} Qh7 {[%emt 0:00:00] [#]} 46. Kc5 $1 {[%emt 0:00:00]} Kf8 {[%emt 0:00:00]} 47. h6 {[%emt 0:00:00]} Qxh6 {[%emt 0:00:00] [#]} 48. Nxe6+ $1 {[%emt 0:00:00][%mdl 512]} fxe6 {[%emt 0:00:00]} 49. Qxb7 {[%emt 0:00:00][%mdl 4096] Endgame And now Kd6 would win. KQ-KQ} e5 {[%emt 0:00:00]} 50. Qc8+ {[%emt 0:00:00]} Ke7 {[%emt 0:00:00]} 51. Qf5 {[%emt 0:00:00]} (51. f5 $142) 51... exf4 $2 {[%emt 0:00:00]} (51... Qh8 52. fxe5 fxe5 53. Qg5+ Kf7) 52. gxf4 {[%emt 0:00:00][%cal Bg3f4,Bf4f5][%mdl 32]} Qf8 {[%emt 0:00:00]} 53. Qd5 {[%emt 0:00:00] White threatens Qd6+ and mate.} Qb8 {[%emt 0:00:32] Inhibits Qd6+.} 54. Qe4+ $2 {[%emt 0:00:00]} (54. f5 {Intending Qe6+ and mate.} Qb2 55. Kc6) 54... Kd7 {[%emt 0:01:44]} (54... Kf8 $18 55. f5 Qc7+ 56. Qc6 Qa5+ 57. Qb5 Qc7+ 58. Kb4 Kg7) 55. Qh7+ {[%emt 0:00:00]} Ke6 {[%emt 0:00:07]} 56. f5+ {[%emt 0:00:00] A superb game by Frank.   Weighted Error Value: White=0.30/Black=0.40} 1-0

[Event "Czech Championship U20 Open 2023"]
[Site "Jaromerice nad Rokytnou"]
[Date "2023.03.13"]
[Round "5.6"]
[White "Mica, Marek"]
[Black "Gnojek, Petr"]
[Result "0-1"]
[ECO "A40"]
[WhiteElo "2248"]
[BlackElo "2313"]
[Annotator "TA"]
[PlyCount "158"]
[EventDate "2023.03.10"]
[EventType "tourn"]
[EventCountry "CZE"]
[SourceTitle "playchess.com"]
[Source "ChessBase"]
[SourceQuality "1"]
[TimeControl "40/5400+30:1800+30"]

{[%evp 9,157,36,32,16,20,-7,0,0,0,-108,-129,-158,-18,-15,99,85,89,104,62,113,235,222,229,229,228,218,245,243,305,190,188,192,197,179,212,207,296,32,29,28,82,0,0,0,0,0,0,0,0,0,0,0,0,-36,0,-26,-42,-39,-6,-9,-8,-3,0,0,0,0,0,0,0,-8,-8,-8,0,0,0,0,0,0,0,-8,-8,-8,-8,-13,-13,-13,-13,-77,-44,-70,-70,-70,-59,-179,-170,-448,-442,-479,-479,-479,-479,-1238,-375,-352,-315,-409,-410,-360,-362,-261,-8,-8,-8,-8,-8,-56,-8,-56,-56,-56,-8,-56,-8,-29981,-29982,-29982,-29983,-29983,-169,-29984,-29985,-29985,-29986,-29987,-29986,-29988,-29989,-29992,-29990,-29993,-29994,-29994,-29992,-29993,-29992,-29994,-29995,-29995,-29996,-29999]} 1. d4 {[%emt 0:00:03]} e6 {[%emt 0:00:14]} 2. Bf4 {[%emt 0:10:34]} f5 {[%emt 0:00:13]} 3. e3 {[%emt 0:01:34]} Nf6 {[%emt 0:00:09]} 4. Bd3 {[%emt 0:00:54]} Nc6 {[%emt 0:01:58]} 5. Nf3 {[%emt 0:02:24]} d6 {[%emt 0:00:25][%cal Bd7d6,Bd6e5,Be5f4][%mdl 32]} 6. Nbd2 {[%emt 0:01:36]} Qe7 {[%emt 0:01:48]} 7. O-O {[%emt 0:12:53]} (7. e4 $5 {[%cal Re1g1]}) 7... e5 {[%emt 0:04:26]} 8. dxe5 {[%emt 0:00:05] The position is equal.} dxe5 {[%emt 0:00:04]} 9. e4 {[%emt 0:00:08]} exf4 $17 {[%emt 0:00:37]} 10. exf5 {[%emt 0:00:51] Strongly threatening Re1.} Qc5 {[%emt 0:00:21]} (10... Qd8 $1 $17 {And now ...Be7 would win.} 11. Qe2+ Be7) 11. Nb3 $11 {[%emt 0:01:46]} Qd5 {[%emt 0:03:02]} (11... Qb6 $1 $11 12. Re1+ Be7) 12. Qe2+ $16 {[%emt 0:05:31][%mdl 1024] White has strong compensation.} Be7 {[%emt 0:00:11]} 13. Rfe1 $1 {[%emt 0:03:31]} Kf8 {[%emt 0:10:35]} 14. Rad1 {[%emt 0:08:10]} Bd6 {[%emt 0:00:11]} (14... Bxf5 $2 15. Bxf5 Qxf5 16. Nbd4 Nxd4 17. Nxd4 $18) (14... Qf7 $16) 15. c4 $1 $18 {[%emt 0:14:07][%cal Bc2c4,Bc4c5][%mdl 32]} Qf7 {[%emt 0:00:32]} 16. c5 $1 {[%emt 0:00:33]} Be7 {[%emt 0:03:17]} 17. Bc4 {[%emt 0:11:33]} Qe8 {[%emt 0:01:33]} 18. Qd2 {[%emt 0:03:30]} Qh5 {[%emt 0:11:47]} 19. Qxf4 {[%emt 0:07:27][%cal Oe1e7]} Qg4 {[%emt 0:00:12]} (19... Bxf5 $2 20. Qxc7 Rd8 21. Nbd4 $18 (21. Qxb7 Rxd1 22. Rxd1 Be4 $18)) 20. Qc1 {[%emt 0:02:40]} (20. Qxg4 Nxg4 21. Nbd4 Nxd4 22. Rxd4 Bxf5 $11) 20... Qxf5 {[%emt 0:18:41]} (20... Bxf5 21. Nbd4 Re8 22. h3) 21. Qe3 {[%emt 0:00:22]} g5 {[%emt 0:02:29]} 22. Nfd4 {[%emt 0:05:41]} (22. Nxg5 Ng4 23. Ne6+ Bxe6 24. Qxe6 Qxe6 25. Bxe6 Nf6 $17) (22. Qxg5 Qxg5 23. Nxg5 Nh5 $17) 22... Qf4 {[%emt 0:00:11] [#]} (22... Ng4 {is a better defense.} 23. Nxf5 Nxe3 24. Nxe3 Bd8) 23. Qe2 $2 {[%emt 0:00:11]} (23. Ne6+ $6 Bxe6 24. Qxe6 Ng4 $16) (23. Qc3 $1 $18 Ne5 24. f3 (24. g3 Ne4 $14 {[%mdl 64] Double Attack}) 24... Nxc4 25. g3) 23... Ng4 $1 $14 {[%emt 0:06:25]} 24. g3 {[%emt 0:01:43]} Qe5 {[%emt 0:00:31]} (24... Qxf2+ $1 $11 25. Qxf2+ Nxf2 26. Kxf2 Nxd4 27. Nxd4 (27. Rxd4 Bf6 $11) 27... Bg4) 25. Nxc6 {[%emt 0:03:59]} (25. Qf3+ Qf6 26. Qe2 Nge5 $15) (25. Qf1 $16 Qf6 26. Nxc6 bxc6 27. Qe2) 25... Qxe2 $11 {[%emt 0:00:05]} 26. Rxe2 {[%emt 0:00:04]} bxc6 {[%emt 0:00:05]} 27. Rde1 $1 {[%emt 0:00:44]} Bf6 {[%emt 0:01:39]} 28. Re8+ $1 {[%emt 0:00:21]} Kg7 {[%emt 0:00:04]} 29. Rxh8 {[%emt 0:00:12]} Kxh8 {[%emt 0:00:05]} 30. Re8+ {[%emt 0:00:07]} Kg7 {[%emt 0:00:03][%cal Oc8b7]} 31. Rg8+ {[%emt 0:00:25]} Kh6 {[%emt 0:00:06]} 32. Be6 {[%emt 0:00:50]} (32. Be2 $5) 32... Bxe6 {[%emt 0:03:22]} 33. Rxa8 {[%emt 0:00:09]} Bxb3 {[%emt 0:00:07]} 34. axb3 {[%emt 0:00:11]} Bd4 {[%emt 0:00:06]} 35. Rxa7 {[%emt 0:00:44]} Nxf2 {[%emt 0:00:05]} 36. Rxc7 {[%emt 0:01:28] Threatens to win with Kg2.} Nd3+ {[%emt 0:00:05]} 37. Kg2 {[%emt 0:00:21]} Nb4 {[%emt 0:00:20]} 38. Kf3 {[%emt 0:01:03]} Bxc5 {[%emt 0:00:11]} 39. h4 {[%emt 0:00:35]} gxh4 {[%emt 0:00:13]} 40. gxh4 {[%emt 0:00:05]} Bd4 {[%emt 0:02:06]} 41. Rb7 {[%emt 0:04:11]} c5 {[%emt 0:03:51]} 42. Ke4 {[%emt 0:05:44]} Bf2 {[%emt 0:08:22]} 43. Rc7 {[%emt 0:02:02]} Kg6 {[%emt 0:00:19]} 44. Kf3 {[%emt 0:00:58]} Bd4 {[%emt 0:03:25]} 45. Ke4 {[%emt 0:00:16]} h6 {[%emt 0:00:48]} 46. Rb7 {[%emt 0:09:19]} Kh5 {[%emt 0:00:26]} 47. Rb6 {[%emt 0:01:07]} (47. Rxb4 cxb4 48. Kxd4 Kxh4 49. Ke3 Kg3 50. Ke2 Kg2 51. Ke3 h5 52. Kd4 h4 53. Kc5 h3 54. Kxb4 Kg3 55. Kc4 h2 56. Kd5 h1=Q+ 57. Kd6 Kf4 58. Kc5 Qb7 59. Kc4 Ke4 60. Kc5 Qc7+ 61. Kb5 Kd4 62. b4 Qb7+ 63. Ka4 Kc4 64. b3+ Kc3 65. Ka5 Kxb3 66. b5 Qa7#) 47... Bxb2 {[%emt 0:02:59]} 48. Kf3 {[%emt 0:07:16]} (48. Rb5 $11 {remains equal.}) 48... Bc3 {[%emt 0:08:17]} 49. Kg2 {[%emt 0:01:17]} Nc2 {[%emt 0:04:27] White must now prevent ...Nd4.} 50. Kh3 {[%emt 0:01:10]} Bb4 {[%emt 0:00:17]} 51. Re6 {[%emt 0:00:38]} (51. Rd6 $15) 51... Nd4 $19 {[%emt 0:00:05][%csl LRb3,LRe6]} 52. Re3 {[%emt 0:01:03]} (52. Re5+ {is the only way for White.} Kg6 53. Kg4) 52... Kg6 {[%emt 0:00:43]} 53. Kg4 {[%emt 0:00:50]} h5+ {[%emt 0:00:24]} 54. Kh3 {[%emt 0:00:08]} Kf5 {[%emt 0:00:13] aiming for ...Kf4.} 55. Rg3 {[%emt 0:00:16]} (55. Kg2 $142 Kf4 56. Kf2) 55... Ne6 $2 {[%emt 0:00:05]} (55... Ke4 {...Bd2 would be deadly.} 56. Kg2 Be1) 56. Rg8 {[%emt 0:01:23]} Nf4+ {[%emt 0:00:32]} 57. Kg3 {[%emt 0:00:13]} Be1+ {[%emt 0:00:27][%mdl 64] Deflection} 58. Kf3 {[%emt 0:00:41] Hoping for Rf8+.} Bxh4 {[%emt 0:00:09]} 59. Rb8 {[%emt 0:01:32]} Be7 $2 {[%emt 0:00:18]} (59... Nd3 $19 {...Be7 is the strong threat.} 60. Ke3 Nb4 61. Rf8+ Bf6) 60. b4 $1 $11 {[%emt 0:00:36]} Ne6 {[%emt 0:05:29]} 61. bxc5 {[%emt 0:00:21]} Bxc5 {[%emt 0:00:23]} ({Inferior is} 61... Nxc5 62. Rb5 $17) 62. Kg2 {[%emt 0:00:23]} (62. Re8 $11) 62... Nf4+ {[%emt 0:02:27]} (62... Bd4 $1 $15 {feels stronger.} 63. Kh3 Nf4+ 64. Kg3 h4+ 65. Kf3 Ng6) 63. Kh1 {[%emt 0:00:29]} (63. Kf3 $11) 63... Bd4 {[%emt 0:05:23]} 64. Rb3 {[%emt 0:00:51]} Kg4 {[%emt 0:00:33] Repels Rf3} (64... Ne6 $15 {should be considered.} 65. Kg2 h4) 65. Rb4 {[%emt 0:00:15]} (65. Rg3+ $1 $11 Kf5 66. Rb3 (66. Rf3 $2 h4 $19)) 65... Ne2 {[%emt 0:00:04]} (65... Ne6 $15 66. Kh2 Kf3 67. Rb3+ Kf4) 66. Ra4 $2 {[%emt 0:00:30][%mdl 8192]} (66. Kg2 $11) 66... Kh3 {[%emt 0:04:33][%cal Re2g3]} 67. Ra3+ {[%emt 0:00:24] [#]} Bc3 $1 {[%emt 0:00:06]} 68. Ra4 {[%emt 0:00:42]} Ng3+ {[%emt 0:00:04]} 69. Kg1 {[%emt 0:00:30] [#]} Bd4+ $1 {[%emt 0:00:05][%mdl 576] Decoy. Black mates.} 70. Rxd4 {[%emt 0:00:12] KR-KN} Ne2+ {[%emt 0:00:03]} 71. Kh1 {[%emt 0:00:08]} Nxd4 {[%emt 0:00:05]} 72. Kg1 {[%emt 0:00:05]} Kg3 {[%emt 0:00:06]} 73. Kh1 {[%emt 0:00:04]} h4 {[%emt 0:00:05][%cal Bh5h4,Bh4h3,Bh3h2][%mdl 32]} 74. Kg1 {[%emt 0:00:03]} h3 {[%emt 0:00:05]} 75. Kh1 {[%emt 0:00:03]} Nf5 {[%emt 0:00:04][%cal Bd4f5,Bf5h6,Bh6g4,Bg4f2][%mdl 32]} 76. Kg1 {[%emt 0:00:06]} Nh6 {[%emt 0:00:05]} 77. Kh1 {[%emt 0:00:09]} Ng4 {[%emt 0:00:04]} 78. Kg1 {[%emt 0:00:03]} h2+ {[%emt 0:00:04]} 79. Kh1 {[%emt 0:00:03]} Nf2# {[%emt 0:00:04] What a fight!   Weighted Error Value: White=0.32/Black=0.28 (precise)} 0-1

[Event "Czech Championship U20 Open 2023"]
[Site "Jaromerice nad Rokytnou"]
[Date "2023.03.14"]
[Round "6.1"]
[White "Hlavina, Matous"]
[Black "Gnojek, Petr"]
[Result "1-0"]
[ECO "B45"]
[WhiteElo "2091"]
[BlackElo "2313"]
[Annotator "TA"]
[PlyCount "71"]
[EventDate "2023.03.10"]
[EventType "tourn"]
[EventCountry "CZE"]
[SourceTitle "playchess.com"]
[Source "ChessBase"]
[SourceQuality "1"]
[TimeControl "40/5400+30:1800+30"]

{[%evp 24,71,41,41,70,15,10,15,7,-25,92,75,355,361,349,347,336,329,371,364,366,293,426,440,435,413,430,442,472,467,458,450,445,446,507,507,507,499,484,466,563,577,649,653,704,666,730,730,752,669]} 1. e4 {[%emt 0:00:01]} c5 {[%emt 0:00:05]} 2. Nf3 {[%emt 0:00:05]} e6 {[%emt 0:00:04]} 3. d4 {[%emt 0:00:04]} cxd4 {[%emt 0:00:05]} 4. Nxd4 {[%emt 0:00:04]} Nc6 {[%emt 0:00:06]} 5. Nc3 {[%emt 0:00:21]} d6 {[%emt 0:00:09]} 6. Be3 {[%emt 0:02:09]} Nf6 {[%emt 0:00:19]} 7. f3 {[%emt 0:01:49]} Be7 {[%emt 0:00:09]} 8. Qd2 {[%emt 0:00:10]} O-O {[%emt 0:00:06]} 9. O-O-O {[%emt 0:00:59]} a6 {[%emt 0:01:00]} 10. g4 {[%emt 0:08:41][%cal Bg2g4,Bg4g5,Bg5g6][%mdl 32]} Nxd4 {[%emt 0:01:10]} 11. Bxd4 {[%emt 0:00:39]} b5 {[%emt 0:00:07]} 12. h4 {[%emt 0:13:36]} Nd7 {[%emt 0:08:58]} 13. g5 {[%emt 0:03:56]} Qc7 {[%emt 0:01:15] B80: Sicilian Scheveningen: 6 g3 and 6 Be3, including English Attack.} 14. h5 {[%emt 0:08:29]} (14. a3 $14) 14... b4 $11 {[%emt 0:00:09]} 15. Na4 {[%emt 0:15:06]} Qa5 {[%emt 0:01:10][%csl LRa4,LRg5] The position is equal.} 16. g6 {[%emt 0:12:45][%cal Oh5h6] [#] Hoping for h6!} h6 $146 {[%emt 0:11:34]} (16... Qxa4 $2 17. h6 fxg6 18. hxg7 $18) (16... Bg5 $1 $11 17. f4 Bh6) ({Predecessor:} 16... Bg5 17. f4 Bh6 18. b3 Bb7 19. Bg2 Rac8 20. Kb1 e5 21. Bb2 Rc6 22. Ba3 Bxf4 23. Qxb4 {1-0 Engineer (2426)-Alexisco (2431) PAL/CSS Freestyle op 5th rapid 2007 (2)}) 17. b3 $16 {[%emt 0:04:07] White has more active pieces. The black rooks are badly placed.} Ne5 $2 {[%emt 0:06:15][%mdl 8192] Loses the game.} (17... fxg6 $16 18. hxg6 Qg5) 18. Bb6 $18 {[%emt 0:01:45][%mdl 64] [#] Trapped Piece} Nxf3 {[%emt 0:00:10] Strongly threatening ...Qe5.} 19. Bxa5 {[%emt 0:00:07]} Nxd2 {[%emt 0:00:03]} 20. Kxd2 {[%emt 0:00:15]} (20. Rxd2 Bg5 21. Nb6 Rb8) 20... fxg6 {[%emt 0:01:18]} 21. Nb6 {[%emt 0:01:04]} ({Don't do} 21. Bxb4 Bb7 22. Bd3 (22. hxg6 a5 $16) 22... Rf4 $18) 21... Rb8 {[%emt 0:01:05]} 22. Bc4 {[%emt 0:01:15] And now Nxc8 would win.} Kh7 {[%emt 0:02:06]} (22... Bg5+ {was called for.} 23. Ke2 Rf4) 23. hxg6+ {[%emt 0:00:17]} Kxg6 {[%emt 0:00:04]} 24. Rdf1 {[%emt 0:01:25]} Bg5+ {[%emt 0:05:20]} 25. Kd1 {[%emt 0:00:48] White is clearly winning.} Rd8 {[%emt 0:12:04]} 26. Nxc8 {[%emt 0:06:50][%mdl 64] [#] Remove Defender} Rdxc8 {[%emt 0:00:04]} 27. Bxe6 {[%emt 0:01:16] Black must now prevent Bf5+.} ({Less strong is} 27. Bxa6 Rc5 $11) 27... Rc5 {[%emt 0:00:04]} 28. Rf5 {[%emt 0:00:10]} Re5 {[%emt 0:00:21]} 29. Rxe5 {[%emt 0:00:38]} dxe5 {[%emt 0:00:05]} 30. Bc7 {[%emt 0:00:29][%csl LRb8,LRe5] Against Bd8} Re8 {[%emt 0:00:21]} 31. Bd7 {[%emt 0:01:30]} Rf8 {[%emt 0:00:43]} 32. Ke2 {[%emt 0:01:18] Wards off Rf2+} ({Not} 32. Bxe5 Rd8 $15) 32... Bf4 {[%emt 0:00:44]} 33. Bf5+ {[%emt 0:00:23]} Kf6 {[%emt 0:00:38]} 34. Rg1 {[%emt 0:01:19]} g5 {[%emt 0:02:28]} 35. Rd1 {[%emt 0:00:14]} h5 {[%emt 0:02:06]} 36. Rd7 {[%emt 0:01:03] Weighted Error Value: White=0.11 (very precise) /Black=0.65} 1-0